[Event "*** Titled Tuesday Blitz"]
[Site "Chess.com"]
[Date "2019.04.02"]
[Round "4"]
[White "ChainsOfFantasia"]
[Black "Arystanner"]
[Result "1/2-1/2"]
[WhiteElo "2423"]
[BlackElo "2549"]
[TimeControl "180+2"]
[EndTime "14:49:39 PDT"]
[Termination "Game drawn by repetition"]

1. d4 {[%clk 0:03:01.9]} 1... Nf6 {[%clk 0:03:00.5]} 2. Nf3 {[%clk 0:02:57]}
2... d5 {[%clk 0:03:01.4]} 3. e3 {[%clk 0:02:57.4]} 3... e6 {[%clk 0:03:02.1]}
4. Bd3 {[%clk 0:02:58.5]} 4... c5 {[%clk 0:03:01.5]} 5. c3 {[%clk 0:03:00.4]}
5... Nc6 {[%clk 0:03:02.7]} 6. O-O {[%clk 0:03:00.8]} 6... Be7 {[%clk
0:03:03.3]} 7. Nbd2 {[%clk 0:02:59.6]} 7... O-O {[%clk 0:03:04.2]} 8. dxc5
{[%clk 0:03:00.9]} 8... Bxc5 {[%clk 0:03:04.8]} 9. b4 {[%clk 0:03:02.5]} 9...
Bd6 {[%clk 0:03:04.6]} 10. Bb2 {[%clk 0:03:04]} 10... e5 {[%clk 0:02:59.2]} 11.
e4 {[%clk 0:03:04.3]} 11... dxe4 {[%clk 0:02:53.9]} 12. Nxe4 {[%clk 0:03:06.2]}
12... Nxe4 {[%clk 0:02:55.8]} 13. Bxe4 {[%clk 0:03:07.3]} 13... Be6 {[%clk
0:02:50.5]} 14. Qe2 {[%clk 0:02:49.8]} 14... f6 {[%clk 0:02:42.9]} 15. a3 {[%clk
0:02:49.2]} 15... Rc8 {[%clk 0:02:32.1]} 16. Rfd1 {[%clk 0:02:46.5]} 16... Qe7
{[%clk 0:02:30.7]} 17. c4 {[%clk 0:02:40.8]} 17... b6 {[%clk 0:02:20.3]} 18.
Rac1 {[%clk 0:02:39.9]} 18... Rfd8 {[%clk 0:02:18.4]} 19. c5 {[%clk 0:02:22]}
19... bxc5 {[%clk 0:02:14.3]} 20. bxc5 {[%clk 0:02:23.5]} 20... Bb8 {[%clk
0:02:08.7]} 21. Rxd8+ {[%clk 0:02:10.2]} 21... Qxd8 {[%clk 0:02:06.6]} 22. Rd1
{[%clk 0:01:57.9]} 22... Qe7 {[%clk 0:01:54.2]} 23. Qa6 {[%clk 0:01:45.6]} 23...
Nd8 {[%clk 0:01:13.9]} 24. Bd5 {[%clk 0:01:35.1]} 24... Kf8 {[%clk 0:01:12.5]}
25. Bxe6 {[%clk 0:01:28.1]} 25... Qxe6 {[%clk 0:01:13]} 26. Qb5 {[%clk 0:01:00]}
26... Qc6 {[%clk 0:01:11.9]} 27. Qd3 {[%clk 0:00:49.3]} 27... Ne6 {[%clk
0:01:11.6]} 28. Qxh7 {[%clk 0:00:49.7]} 28... Qxc5 {[%clk 0:01:02.5]} 29. g3
{[%clk 0:00:34.8]} 29... Qc2 {[%clk 0:00:59.5]} 30. Rd3 {[%clk 0:00:29.5]} 30...
Ke7 {[%clk 0:00:41.6]} 31. Nh4 {[%clk 0:00:18.2]} 31... Qxb2 {[%clk 0:00:24.6]}
32. Nf5+ {[%clk 0:00:19.2]} 32... Ke8 {[%clk 0:00:24.4]} 33. Qg8+ {[%clk
0:00:16.2]} 33... Nf8 {[%clk 0:00:24.8]} 34. Nxg7+ {[%clk 0:00:13.7]} 34... Ke7
{[%clk 0:00:25.8]} 35. Nf5+ {[%clk 0:00:15.2]} 35... Ke8 {[%clk 0:00:27]} 36.
Ng7+ {[%clk 0:00:12.2]} 36... Ke7 {[%clk 0:00:28.5]} 37. Nf5+ {[%clk 0:00:10.4]}
37... Ke8 {[%clk 0:00:29.9]} 38. Ng7+ {[%clk 0:00:08.4]} 38... Ke7 {[%clk
0:00:31.3]} 39. Nf5+ {[%clk 0:00:09.5]} 39... Ke8 {[%clk 0:00:32.7]} 40. Ng7+
{[%clk 0:00:08.6]} 40... Ke7 {[%clk 0:00:34.1]} 41. Nf5+ {[%clk 0:00:09.9]}
41... Ke8 {[%clk 0:00:35.2]} 1/2-1/2

[Event "*** Titled Tuesday Blitz"]
[Site "Chess.com"]
[Date "2019.04.02"]
[Round "4"]
[White "Guenplen"]
[Black "iLuusions"]
[Result "1-0"]
[WhiteElo "2914"]
[BlackElo "2626"]
[TimeControl "180+2"]
[EndTime "14:49:42 PDT"]
[Termination "Guenplen won on time"]

1. Nf3 {[%clk 0:03:01.9]} 1... Nf6 {[%clk 0:03:00.5]} 2. c4 {[%clk 0:03:02.1]}
2... e6 {[%clk 0:02:59.8]} 3. Nc3 {[%clk 0:03:01.3]} 3... d5 {[%clk 0:03:01.1]}
4. e3 {[%clk 0:03:01.9]} 4... a6 {[%clk 0:03:02.7]} 5. b3 {[%clk 0:03:01.2]}
5... c5 {[%clk 0:03:03.4]} 6. cxd5 {[%clk 0:03:01.6]} 6... exd5 {[%clk
0:03:04.2]} 7. d4 {[%clk 0:03:02.5]} 7... b6 {[%clk 0:03:05.5]} 8. Bb2 {[%clk
0:03:00.8]} 8... Be7 {[%clk 0:03:06.3]} 9. Bd3 {[%clk 0:03:01.5]} 9... O-O
{[%clk 0:03:05.4]} 10. O-O {[%clk 0:03:00.9]} 10... Bb7 {[%clk 0:03:03.3]} 11.
Rc1 {[%clk 0:02:59.2]} 11... Nbd7 {[%clk 0:03:03.6]} 12. Ne2 {[%clk 0:02:52.8]}
12... Rc8 {[%clk 0:03:04.5]} 13. Ng3 {[%clk 0:02:52.1]} 13... Re8 {[%clk
0:03:03.3]} 14. Qe2 {[%clk 0:02:52.1]} 14... b5 {[%clk 0:02:56]} 15. dxc5 {[%clk
0:02:52.9]} 15... Bxc5 {[%clk 0:02:51.3]} 16. Rfd1 {[%clk 0:02:41.6]} 16... Qb6
{[%clk 0:02:51.8]} 17. Nd4 {[%clk 0:02:26.9]} 17... Ne5 {[%clk 0:02:35.3]} 18.
Bf5 {[%clk 0:02:25.3]} 18... Rc7 {[%clk 0:02:26.9]} 19. Bb1 {[%clk 0:02:06.6]}
19... g6 {[%clk 0:02:26.6]} 20. h3 {[%clk 0:02:02.9]} 20... Rcc8 {[%clk
0:02:06]} 21. a3 {[%clk 0:01:49]} 21... Ne4 {[%clk 0:01:40.7]} 22. Nxe4 {[%clk
0:01:30.6]} 22... dxe4 {[%clk 0:01:42.6]} 23. b4 {[%clk 0:01:31.6]} 23... Bd6
{[%clk 0:01:30.2]} 24. Ba2 {[%clk 0:01:06.4]} 24... Rxc1 {[%clk 0:01:14.5]} 25.
Rxc1 {[%clk 0:01:04]} 25... Nd3 {[%clk 0:01:15.8]} 26. Rc2 {[%clk 0:01:00.8]}
26... Bb8 {[%clk 0:01:13.3]} 27. Ba1 {[%clk 0:00:30.7]} 27... h5 {[%clk
0:01:12.1]} 28. Nf5 {[%clk 0:00:23.5]} 28... Rc8 {[%clk 0:00:31.7]} 29. Nh6+
{[%clk 0:00:20.6]} 29... Kf8 {[%clk 0:00:24.5]} 30. Nxf7 {[%clk 0:00:21.4]}
30... h4 {[%clk 0:00:08.2]} 31. Rxc8+ {[%clk 0:00:17.8]} 31... Bxc8 {[%clk
0:00:09.5]} 32. Qc2 {[%clk 0:00:19.3]} 32... Be6 {[%clk 0:00:07.4]} 33. Ng5
{[%clk 0:00:18.2]} 33... Bxa2 {[%clk 0:00:04.3]} 34. Qxa2 {[%clk 0:00:14.4]} 1-0

[Event "*** Titled Tuesday Blitz"]
[Site "Chess.com"]
[Date "2019.04.02"]
[Round "4"]
[White "StephenDedalus83"]
[Black "Fighter008"]
[Result "1-0"]
[WhiteElo "2656"]
[BlackElo "2434"]
[TimeControl "180+2"]
[EndTime "14:49:52 PDT"]
[Termination "StephenDedalus83 won on time"]

1. e4 {[%clk 0:03:01.9]} 1... c5 {[%clk 0:03:00.3]} 2. Nf3 {[%clk 0:03:02.6]}
2... d6 {[%clk 0:03:01.2]} 3. d4 {[%clk 0:03:03.8]} 3... cxd4 {[%clk 0:03:02.5]}
4. Nxd4 {[%clk 0:03:05.7]} 4... Nf6 {[%clk 0:03:03.8]} 5. Nc3 {[%clk 0:03:07.1]}
5... a6 {[%clk 0:03:05.3]} 6. g3 {[%clk 0:03:08.2]} 6... e5 {[%clk 0:03:06]} 7.
Nde2 {[%clk 0:03:09.1]} 7... Be7 {[%clk 0:03:03.5]} 8. Bg2 {[%clk 0:03:09.6]}
8... O-O {[%clk 0:03:04.4]} 9. O-O {[%clk 0:03:09.6]} 9... Be6 {[%clk
0:03:00.2]} 10. h3 {[%clk 0:03:08.2]} 10... Nbd7 {[%clk 0:02:56.1]} 11. g4
{[%clk 0:03:08.8]} 11... h6 {[%clk 0:02:50.6]} 12. Ng3 {[%clk 0:03:08.4]} 12...
b5 {[%clk 0:02:48.2]} 13. a3 {[%clk 0:03:04.8]} 13... Nb6 {[%clk 0:02:46.8]} 14.
Nf5 {[%clk 0:03:04.9]} 14... Bxf5 {[%clk 0:02:43.6]} 15. gxf5 {[%clk 0:02:59.2]}
15... Qd7 {[%clk 0:02:42.1]} 16. f4 {[%clk 0:02:57.4]} 16... Rac8 {[%clk
0:02:34.5]} 17. Kh2 {[%clk 0:02:52.2]} 17... Nc4 {[%clk 0:02:31.7]} 18. fxe5
{[%clk 0:02:48]} 18... dxe5 {[%clk 0:02:19.5]} 19. Qxd7 {[%clk 0:02:47.9]} 19...
Nxd7 {[%clk 0:02:21.1]} 20. Nd5 {[%clk 0:02:48.8]} 20... Bh4 {[%clk 0:02:22.6]}
21. b3 {[%clk 0:02:43.2]} 21... Ncb6 {[%clk 0:02:22.3]} 22. Nxb6 {[%clk
0:02:42.8]} 22... Nxb6 {[%clk 0:02:22.8]} 23. Be3 {[%clk 0:02:44.3]} 23... Nd7
{[%clk 0:02:22.4]} 24. Rad1 {[%clk 0:02:44.6]} 24... Nf6 {[%clk 0:02:20.6]} 25.
Rd2 {[%clk 0:02:39.1]} 25... Bg5 {[%clk 0:02:17.5]} 26. Bxg5 {[%clk 0:02:17.5]}
26... hxg5 {[%clk 0:02:18.5]} 27. Re1 {[%clk 0:02:18.2]} 27... Rc3 {[%clk
0:02:18.5]} 28. Bf1 {[%clk 0:02:19.1]} 28... Rfc8 {[%clk 0:02:14.1]} 29. Bd3
{[%clk 0:02:19.2]} 29... Nh5 {[%clk 0:02:11.5]} 30. Rg1 {[%clk 0:02:11.5]} 30...
f6 {[%clk 0:02:12.4]} 31. a4 {[%clk 0:02:12.5]} 31... Nf4 {[%clk 0:02:02.8]} 32.
axb5 {[%clk 0:01:59.2]} 32... axb5 {[%clk 0:02:03.8]} 33. Rg3 {[%clk 0:01:48.4]}
33... Kf8 {[%clk 0:01:49.3]} 34. Bxb5 {[%clk 0:01:43.8]} 34... Rxc2 {[%clk
0:01:50.4]} 35. Rxc2 {[%clk 0:01:44.6]} 35... Rxc2+ {[%clk 0:01:51.7]} 36. Kg1
{[%clk 0:01:45.6]} 36... Ke7 {[%clk 0:01:39.1]} 37. h4 {[%clk 0:01:28.8]} 37...
gxh4 {[%clk 0:01:35.5]} 38. Rxg7+ {[%clk 0:01:29.2]} 38... Kd6 {[%clk
0:01:35.6]} 39. Rf7 {[%clk 0:01:30.2]} 39... Rg2+ {[%clk 0:01:11.1]} 40. Kh1
{[%clk 0:01:30.2]} 40... Kc5 {[%clk 0:01:10.6]} 41. Bc4 {[%clk 0:01:27.3]} 41...
h3 {[%clk 0:01:04.6]} 42. Rxf6 {[%clk 0:01:27.3]} 42... Nh5 {[%clk 0:00:32.2]}
43. Rg6 {[%clk 0:01:27.5]} 43... Ng3+ {[%clk 0:00:32.5]} 44. Rxg3 {[%clk
0:01:28]} 44... Rxg3 {[%clk 0:00:34.1]} 45. f6 {[%clk 0:01:26.7]} 45... Rf3
{[%clk 0:00:34.9]} 46. f7 {[%clk 0:01:25.3]} 46... Kd4 {[%clk 0:00:27.9]} 47.
Bd5 {[%clk 0:01:25.4]} 47... Kc3 {[%clk 0:00:17.2]} 48. Kh2 {[%clk 0:01:25.1]}
48... Kd4 {[%clk 0:00:15]} 49. b4 {[%clk 0:01:23.9]} 49... Rf6 {[%clk
0:00:04.7]} 50. Kxh3 {[%clk 0:01:23.6]} 50... Ke3 {[%clk 0:00:04.2]} 51. Kg4
{[%clk 0:01:21.2]} 1-0

[Event "*** Titled Tuesday Blitz"]
[Site "Chess.com"]
[Date "2019.04.02"]
[Round "4"]
[White "Perecke"]
[Black "MrChessSponge"]
[Result "0-1"]
[WhiteElo "2078"]
[BlackElo "2261"]
[TimeControl "180+2"]
[EndTime "14:49:53 PDT"]
[Termination "MrChessSponge won on time"]

1. e4 {[%clk 0:03:01.9]} 1... e5 {[%clk 0:02:58.1]} 2. Nf3 {[%clk 0:03:00.1]}
2... Nc6 {[%clk 0:02:58.6]} 3. d4 {[%clk 0:02:47]} 3... exd4 {[%clk 0:02:57.4]}
4. Bc4 {[%clk 0:02:48.5]} 4... Nf6 {[%clk 0:02:46.5]} 5. O-O {[%clk 0:02:47.3]}
5... Nxe4 {[%clk 0:02:39.7]} 6. Re1 {[%clk 0:02:48.4]} 6... d5 {[%clk
0:02:37.5]} 7. Bxd5 {[%clk 0:02:49.9]} 7... Qxd5 {[%clk 0:02:37.1]} 8. Nc3
{[%clk 0:02:51.6]} 8... Qh5 {[%clk 0:02:28.7]} 9. Nxe4 {[%clk 0:02:52.2]} 9...
Be6 {[%clk 0:02:25.3]} 10. Bg5 {[%clk 0:02:53.3]} 10... Bd6 {[%clk 0:02:22]} 11.
Nxd6+ {[%clk 0:02:30.5]} 11... cxd6 {[%clk 0:02:17.1]} 12. Bf4 {[%clk
0:01:49.8]} 12... Qd5 {[%clk 0:02:14]} 13. c3 {[%clk 0:01:33.1]} 13... Rc8
{[%clk 0:02:02]} 14. Nxd4 {[%clk 0:01:26.2]} 14... Nxd4 {[%clk 0:01:42.1]} 15.
Qxd4 {[%clk 0:01:28.1]} 15... Qxd4 {[%clk 0:01:40.2]} 16. cxd4 {[%clk 0:01:30]}
16... Kd7 {[%clk 0:01:38.3]} 17. Rac1 {[%clk 0:01:30.1]} 17... Rxc1 {[%clk
0:01:30.7]} 18. Rxc1 {[%clk 0:01:28.2]} 18... Bxa2 {[%clk 0:01:31.3]} 19. Ra1
{[%clk 0:01:27.2]} 19... Bd5 {[%clk 0:01:28.7]} 20. Rxa7 {[%clk 0:01:26.8]}
20... Rc8 {[%clk 0:01:26.6]} 21. Ra1 {[%clk 0:01:21.5]} 21... Rc2 {[%clk
0:01:19.9]} 22. Bc1 {[%clk 0:00:44.1]} 22... f6 {[%clk 0:01:13.1]} 23. b4 {[%clk
0:00:09.9]} 23... Rc4 {[%clk 0:01:08.4]} 24. Rb1 {[%clk 0:00:10.9]} 24... Be4
{[%clk 0:01:04.4]} 25. Ra1 {[%clk 0:00:11.6]} 25... Rxb4 {[%clk 0:01:03.8]} 26.
Be3 {[%clk 0:00:10.6]} 26... g5 {[%clk 0:01:00.7]} 27. f3 {[%clk 0:00:11]} 27...
Bd5 {[%clk 0:00:58.8]} 28. Ra8 {[%clk 0:00:11.3]} 28... Rb1+ {[%clk 0:00:49]}
29. Kf2 {[%clk 0:00:11.7]} 29... Rb2+ {[%clk 0:00:48.4]} 30. Kg3 {[%clk
0:00:10.8]} 30... b5 {[%clk 0:00:41]} 31. Ra7+ {[%clk 0:00:10.4]} 31... Ke6
{[%clk 0:00:38]} 32. Rxh7 {[%clk 0:00:10.1]} 32... b4 {[%clk 0:00:38.1]} 33. Rh8
{[%clk 0:00:09.3]} 33... Rc2 {[%clk 0:00:35.6]} 34. Rb8 {[%clk 0:00:09.4]} 34...
b3 {[%clk 0:00:35.8]} 35. h3 {[%clk 0:00:03.6]} 35... b2 {[%clk 0:00:33.1]} 36.
Rb4 {[%clk 0:00:02.2]} 36... Ba2 {[%clk 0:00:31.3]} 37. d5+ {[%clk 0:00:03.2]}
37... Kf5 {[%clk 0:00:18.5]} 0-1

[Event "*** Titled Tuesday Blitz"]
[Site "Chess.com"]
[Date "2019.04.02"]
[Round "4"]
[White "SolidAsARook"]
[Black "FrenchMonster2002"]
[Result "1-0"]
[WhiteElo "2248"]
[BlackElo "2344"]
[TimeControl "180+2"]
[EndTime "14:49:55 PDT"]
[Termination "SolidAsARook won by resignation"]

1. c4 {[%clk 0:03:01.9]} 1... Nf6 {[%clk 0:03:00.9]} 2. g3 {[%clk 0:03:03.1]}
2... g6 {[%clk 0:03:02.2]} 3. Bg2 {[%clk 0:03:04.5]} 3... Bg7 {[%clk 0:03:04.1]}
4. Nc3 {[%clk 0:03:05.9]} 4... O-O {[%clk 0:03:05.6]} 5. e4 {[%clk 0:03:07.5]}
5... d6 {[%clk 0:03:06.1]} 6. Nge2 {[%clk 0:03:08.7]} 6... c5 {[%clk 0:03:06.6]}
7. O-O {[%clk 0:03:09.9]} 7... Nc6 {[%clk 0:03:06.1]} 8. d3 {[%clk 0:03:11.4]}
8... a6 {[%clk 0:03:06.8]} 9. h3 {[%clk 0:03:11.5]} 9... Rb8 {[%clk 0:03:07.8]}
10. a4 {[%clk 0:03:12.8]} 10... Ne8 {[%clk 0:03:08.9]} 11. Be3 {[%clk
0:03:13.5]} 11... Nc7 {[%clk 0:03:10.3]} 12. d4 {[%clk 0:03:14.8]} 12... cxd4
{[%clk 0:03:11.8]} 13. Nxd4 {[%clk 0:03:16.7]} 13... Ne6 {[%clk 0:03:12.5]} 14.
Nde2 {[%clk 0:03:17.5]} 14... Nc5 {[%clk 0:03:04.9]} 15. b3 {[%clk 0:03:18.3]}
15... a5 {[%clk 0:02:48.9]} 16. Rb1 {[%clk 0:03:14.3]} 16... b6 {[%clk
0:02:46.9]} 17. f4 {[%clk 0:03:12.1]} 17... Nb4 {[%clk 0:02:30.3]} 18. Qd2
{[%clk 0:02:54.3]} 18... Bb7 {[%clk 0:02:19.1]} 19. Kh2 {[%clk 0:02:38.2]} 19...
f5 {[%clk 0:01:36.3]} 20. exf5 {[%clk 0:02:34.4]} 20... Bxg2 {[%clk 0:01:37.6]}
21. Kxg2 {[%clk 0:02:35.2]} 21... gxf5 {[%clk 0:01:31.7]} 22. Bd4 {[%clk
0:02:18.1]} 22... e5 {[%clk 0:01:26.3]} 23. Be3 {[%clk 0:02:08.8]} 23... Qe7
{[%clk 0:01:06.1]} 24. Nb5 {[%clk 0:02:00.7]} 24... Ne4 {[%clk 0:01:03.4]} 25.
Qe1 {[%clk 0:01:34.5]} 25... Nc2 {[%clk 0:01:01.7]} 26. Qc1 {[%clk 0:01:33.5]}
26... Nxe3+ {[%clk 0:01:01.1]} 27. Qxe3 {[%clk 0:01:35.4]} 27... Kh8 {[%clk
0:00:53.9]} 28. Rbd1 {[%clk 0:01:34.6]} 28... Rfd8 {[%clk 0:00:49.7]} 29. Nec3
{[%clk 0:01:33.7]} 29... Nxc3 {[%clk 0:00:49.2]} 30. Nxc3 {[%clk 0:01:29.7]}
30... e4 {[%clk 0:00:48.9]} 31. Nd5 {[%clk 0:01:27.6]} 31... Qf7 {[%clk
0:00:41.4]} 32. g4 {[%clk 0:01:27]} 32... Qg6 {[%clk 0:00:30.6]} 33. Ne7 {[%clk
0:01:23.9]} 33... Qf6 {[%clk 0:00:31]} 34. Nxf5 {[%clk 0:01:24.5]} 34... d5
{[%clk 0:00:25.6]} 35. Rxd5 {[%clk 0:01:21.4]} 35... Qb2+ {[%clk 0:00:22.5]} 36.
Rf2 {[%clk 0:01:19.5]} 36... Qb1 {[%clk 0:00:19.2]} 37. Nxg7 {[%clk 0:01:14.5]}
37... Rxd5 {[%clk 0:00:18.8]} 38. cxd5 {[%clk 0:01:11.9]} 38... Kxg7 {[%clk
0:00:20.3]} 39. Qd4+ {[%clk 0:01:07.7]} 39... Kf7 {[%clk 0:00:21.7]} 40. d6
{[%clk 0:01:06.8]} 40... Rd8 {[%clk 0:00:18.3]} 41. Qxb6 {[%clk 0:01:04.7]}
41... Rd7 {[%clk 0:00:11.8]} 42. Qc6 {[%clk 0:01:03.6]} 42... Ke6 {[%clk
0:00:11.2]} 43. f5+ {[%clk 0:01:02.1]} 43... Ke5 {[%clk 0:00:09.7]} 44. Qxd7
{[%clk 0:01:01.8]} 44... e3 {[%clk 0:00:09.4]} 45. Qe6+ {[%clk 0:00:59.8]} 45...
Kd4 {[%clk 0:00:10.9]} 46. Re2 {[%clk 0:00:56.6]} 46... Qd1 {[%clk 0:00:08.3]}
47. Qxe3+ {[%clk 0:00:56.1]} 47... Kd5 {[%clk 0:00:09.2]} 48. Rd2+ {[%clk
0:00:56.8]} 1-0

[Event "*** Titled Tuesday Blitz"]
[Site "Chess.com"]
[Date "2019.04.02"]
[Round "4"]
[White "Anahita_Gholami"]
[Black "Yurovskykh_Oleksandr"]
[Result "1-0"]
[WhiteElo "2682"]
[BlackElo "2504"]
[TimeControl "180+2"]
[EndTime "14:49:57 PDT"]
[Termination "Anahita_Gholami won on time"]

1. d4 {[%clk 0:03:00.9]} 1... Nf6 {[%clk 0:02:55.8]} 2. c4 {[%clk 0:03:02.1]}
2... c5 {[%clk 0:02:56.9]} 3. d5 {[%clk 0:03:03.1]} 3... e5 {[%clk 0:02:58.1]}
4. Nc3 {[%clk 0:03:02.1]} 4... d6 {[%clk 0:02:59.3]} 5. e4 {[%clk 0:03:03.5]}
5... Be7 {[%clk 0:03:00.7]} 6. Nf3 {[%clk 0:03:05.1]} 6... O-O {[%clk 0:03:02]}
7. g3 {[%clk 0:03:07]} 7... Ne8 {[%clk 0:03:01.5]} 8. Bg2 {[%clk 0:03:08.6]}
8... Nd7 {[%clk 0:02:57.4]} 9. O-O {[%clk 0:03:08.6]} 9... g6 {[%clk 0:02:58.1]}
10. Ne1 {[%clk 0:03:09.9]} 10... Ng7 {[%clk 0:02:59.3]} 11. Nd3 {[%clk
0:03:11.2]} 11... f5 {[%clk 0:02:44.8]} 12. Bh6 {[%clk 0:03:07.9]} 12... Bg5
{[%clk 0:02:13.9]} 13. Bxg5 {[%clk 0:03:03.7]} 13... Qxg5 {[%clk 0:02:14.1]} 14.
exf5 {[%clk 0:02:45.7]} 14... Nxf5 {[%clk 0:02:03.4]} 15. Ne4 {[%clk 0:02:32.5]}
15... Qe7 {[%clk 0:02:01]} 16. Re1 {[%clk 0:02:28.9]} 16... Nf6 {[%clk
0:01:54.9]} 17. f4 {[%clk 0:02:24.4]} 17... Nxe4 {[%clk 0:01:31.3]} 18. Rxe4
{[%clk 0:02:23.6]} 18... Nd4 {[%clk 0:01:18.4]} 19. fxe5 {[%clk 0:02:21.2]}
19... Bf5 {[%clk 0:01:14.4]} 20. Re3 {[%clk 0:02:17.9]} 20... Bxd3 {[%clk
0:01:11.3]} 21. Qxd3 {[%clk 0:02:19.8]} 21... dxe5 {[%clk 0:01:11.1]} 22. Rae1
{[%clk 0:02:19.8]} 22... Rae8 {[%clk 0:01:11]} 23. b4 {[%clk 0:02:04.7]} 23...
b6 {[%clk 0:01:07.1]} 24. bxc5 {[%clk 0:02:02.3]} 24... Qxc5 {[%clk 0:01:09]}
25. Kh1 {[%clk 0:02:00.6]} 25... Qa5 {[%clk 0:00:53.7]} 26. d6 {[%clk
0:01:34.8]} 26... Nf5 {[%clk 0:00:27.6]} 27. d7 {[%clk 0:00:46.8]} 27... Nxe3
{[%clk 0:00:26.2]} 28. Qxe3 {[%clk 0:00:45.8]} 28... Re7 {[%clk 0:00:21.1]} 29.
Rd1 {[%clk 0:00:27.8]} 29... Rd8 {[%clk 0:00:19.3]} 30. Qg5 {[%clk 0:00:21.6]}
30... Rexd7 {[%clk 0:00:18.2]} 31. Bd5+ {[%clk 0:00:15.2]} 31... Rxd5 {[%clk
0:00:14]} 32. cxd5 {[%clk 0:00:16.8]} 32... Rxd5 {[%clk 0:00:13]} 33. Rf1 {[%clk
0:00:18.3]} 33... Rd2 {[%clk 0:00:06.1]} 34. Qg4 {[%clk 0:00:07.9]} 34... Qd5+
{[%clk 0:00:06.7]} 35. Rf3 {[%clk 0:00:09.1]} 35... Rd3 {[%clk 0:00:04.5]} 36.
Qc8+ {[%clk 0:00:09.9]} 36... Qd8 {[%clk 0:00:02.3]} 37. Qc4+ {[%clk 0:00:10.8]}
1-0

[Event "*** Titled Tuesday Blitz"]
[Site "Chess.com"]
[Date "2019.04.02"]
[Round "4"]
[White "Benjoneliere44"]
[Black "stepanosinovsky"]
[Result "1-0"]
[WhiteElo "2477"]
[BlackElo "2293"]
[TimeControl "180+2"]
[EndTime "14:50:06 PDT"]
[Termination "Benjoneliere44 won by resignation"]

1. d4 {[%clk 0:03:01.9]} 1... Nf6 {[%clk 0:03:00.7]} 2. Bf4 {[%clk 0:02:55]}
2... g6 {[%clk 0:03:01.6]} 3. e3 {[%clk 0:02:55.5]} 3... Bg7 {[%clk 0:03:03.2]}
4. c3 {[%clk 0:02:55.9]} 4... O-O {[%clk 0:03:04.7]} 5. Nd2 {[%clk 0:02:57.1]}
5... d6 {[%clk 0:03:06.3]} 6. h3 {[%clk 0:02:57.7]} 6... Nbd7 {[%clk 0:03:07.5]}
7. Ngf3 {[%clk 0:02:59]} 7... Re8 {[%clk 0:03:07.3]} 8. Bc4 {[%clk 0:02:59.4]}
8... e5 {[%clk 0:03:06.2]} 9. Bh2 {[%clk 0:02:57.9]} 9... e4 {[%clk 0:03:04.4]}
10. Ng1 {[%clk 0:02:58.3]} 10... d5 {[%clk 0:02:51.3]} 11. Bb3 {[%clk
0:02:57.1]} 11... Nf8 {[%clk 0:02:47.1]} 12. Ne2 {[%clk 0:02:56.1]} 12... g5
{[%clk 0:02:43.2]} 13. c4 {[%clk 0:02:51.8]} 13... c6 {[%clk 0:02:40.6]} 14.
cxd5 {[%clk 0:02:44.6]} 14... cxd5 {[%clk 0:02:42.5]} 15. Nb1 {[%clk 0:02:44.6]}
15... Ng6 {[%clk 0:02:37.4]} 16. Nbc3 {[%clk 0:02:41.2]} 16... a6 {[%clk
0:02:38.3]} 17. Bg3 {[%clk 0:02:24.2]} 17... h5 {[%clk 0:02:36.6]} 18. h4 {[%clk
0:02:17.1]} 18... gxh4 {[%clk 0:02:03]} 19. Bxh4 {[%clk 0:02:19]} 19... Nxh4
{[%clk 0:02:02.8]} 20. Rxh4 {[%clk 0:02:20.1]} 20... Bh6 {[%clk 0:01:20.5]} 21.
Qd2 {[%clk 0:02:06.5]} 21... Bg5 {[%clk 0:01:20.1]} 22. Rh1 {[%clk 0:01:51.3]}
22... Kg7 {[%clk 0:01:16]} 23. O-O-O {[%clk 0:01:43.3]} 23... Rh8 {[%clk
0:01:04.3]} 24. Kb1 {[%clk 0:01:42.6]} 24... Be6 {[%clk 0:01:01.5]} 25. Rc1
{[%clk 0:01:40.8]} 25... b5 {[%clk 0:01:01.7]} 26. a3 {[%clk 0:01:38.1]} 26...
Ng4 {[%clk 0:01:00]} 27. Nf4 {[%clk 0:01:25.5]} 27... Bxf4 {[%clk 0:00:46]} 28.
exf4 {[%clk 0:01:27.4]} 28... b4 {[%clk 0:00:27.9]} 29. axb4 {[%clk 0:01:26.3]}
29... Rb8 {[%clk 0:00:28.8]} 30. Nd1 {[%clk 0:01:26.3]} 30... a5 {[%clk
0:00:28.6]} 31. f3 {[%clk 0:01:19.4]} 31... exf3 {[%clk 0:00:20.1]} 32. gxf3
{[%clk 0:01:21.3]} 32... Rxb4 {[%clk 0:00:20.9]} 33. fxg4 {[%clk 0:01:16.7]}
33... Rxb3 {[%clk 0:00:22.1]} 34. f5 {[%clk 0:01:18.1]} 34... Bd7 {[%clk
0:00:22.9]} 35. Rc3 {[%clk 0:01:06.7]} 35... a4 {[%clk 0:00:23.8]} 36. Ne3
{[%clk 0:00:38.7]} 36... hxg4 {[%clk 0:00:23.7]} 37. Rxh8 {[%clk 0:00:37]} 37...
Qxh8 {[%clk 0:00:25.6]} 38. Nxg4 {[%clk 0:00:27.6]} 38... Qh1+ {[%clk
0:00:25.6]} 39. Ka2 {[%clk 0:00:27.3]} 39... f6 {[%clk 0:00:20.9]} 40. Rc7
{[%clk 0:00:23.4]} 40... a3 {[%clk 0:00:15.5]} 41. Rxd7+ {[%clk 0:00:22.6]}
41... Kf8 {[%clk 0:00:16.1]} 42. Kxb3 {[%clk 0:00:21.6]} 42... Qh3+ {[%clk
0:00:15.7]} 43. Qc3 {[%clk 0:00:20.6]} 43... Qxc3+ {[%clk 0:00:13]} 44. bxc3
{[%clk 0:00:21.4]} 44... a2 {[%clk 0:00:14.9]} 45. Kxa2 {[%clk 0:00:22]} 1-0